Cogmind - Beta 12 @@@ ROGUE MODE // 2024.02.11 @ 21:56:52 Player: Remuluson2 Result: Destroyed by Y-64 Sentinel with KE Penetrator Performance ------------- Evolutions (1) 500 Regions Visited (5) 1000 Robots Destroyed (30) 150 Value Destroyed (666) 666 Prototype IDs (2) 40 Alien Tech Used (0) 0 Bonus (712) 712 TOTAL SCORE: 3068 Bonus ------- Follower Combat Kills 112 Met Imprinter 300 Was Imprinted 300 Cogmind --------- Core Integrity 0/400 Matter 265/300 Energy 51/100 System Corruption 3% Temperature Cool (9) Movement Core (50) Location -6/Proximity Caves Parts ------- > --- POWER (1) -------- (None) > --- PROPULSION (4) --- (None) > --- UTILITY (2) ------ (None) > --- WEAPON (2) ------- (None) > --- INVENTORY (5) ---- Seismic Detector Peak State ------------ > --- POWER ------------ Ion Engine > --- PROPULSION ------- Aluminum Leg Improved Aluminum Leg Carbon-fiber Leg Carbon-fiber Leg > --- UTILITY ---------- Cooling System Mobile Refinery Mk. CCLXVII > --- WEAPON ----------- Heavy Beamcaster Heavy Beamcaster > --- INVENTORY -------- Improved Aluminum Leg Improved Aluminum Leg Seismic Detector Grenade Launcher CR-A16's Pointy Stick [Rating: 31] Favorites ----------- Power Ion Engine Engine Ion Engine Propulsion Improved Aluminum Leg Leg Improved Aluminum Leg Utility Seismic Detector Device Seismic Detector Storage Small Storage Unit Weapon Spread Laser Energy Gun Spread Laser Energy Cannon Light EM Pulse Cannon Ballistic Gun Assault Rifle Launcher Grenade Launcher Piercing Weapon CR-A16's Pointy Stick Build | -11 -10 -9 -9 -7 -6 ------- Run | Jun Mat Mat Min Zio Pro Slots Evolved 2 | . . 2 . . . Power . | . . . . . . Propulsion 2 | . . 2 . . . Utility . | . . . . . . Weapon . | . . . . . . Parts Attached 38 | 6 9 6 6 6 5 Power 4 | . 2 1 1 . . Engine 4 | . 2 1 1 . . Core . | . . . . . . Reactor . | . . . . . . Propulsion 10 | 2 2 1 1 2 2 Treads . | . . . . . . Leg 10 | 2 2 1 1 2 2 Wheel . | . . . . . . Hover . | . . . . . . Flight . | . . . . . . Utility 9 | 2 3 2 1 1 . Device 8 | 1 3 2 1 1 . Storage 1 | 1 . . . . . Processor . | . . . . . . Hackware . | . . . . . . Protection . | . . . . . . Artifact . | . . . . . . Weapon 15 | 2 2 2 3 3 3 Energy Gun 9 | 1 2 1 2 2 1 Energy Cannon 2 | . . 1 1 . . Ballistic Gun 1 | 1 . . . . . Ballistic Cannon . | . . . . . . Launcher 1 | . . . . . 1 Special Weapon . | . . . . . . Impact Weapon . | . . . . . . Slashing Weapon . | . . . . . . Piercing Weapon 2 | . . . . 1 1 Special Melee Weapon . | . . . . . . Unidentified Prototypes 1 | . . . . 1 . Parts Lost 14 | . . 2 2 . 10 Power 3 | . . 1 1 . 1 Propulsion 4 | . . . . . 4 Utility 3 | . . 1 1 . 1 Weapon 4 | . . . . . 4 Highest Loss Streak 10 | . . 2 2 . 10 To Critical Strikes . | . . . . . . Average Slot Usage (%) 94 | . 93 84 95 99 94 Engine 10 | . 8 10 10 11 9 Leg 37 | . 28 33 42 44 41 Device 20 | . 17 21 18 22 21 Storage 2 | . 10 . . . . Energy Gun 15 | . 17 17 9 14 18 Energy Cannon 3 | . . 1 12 5 . Ballistic Gun 2 | . 10 . . . . Naked Turns 1 | . . . . . 1 Heaviest Build 22 | 10 13 15 15 20 22 Greatest Support 53 | 20 26 39 49 53 53 Greatest Overweight (x) . | . . . . . . Average Overweight (x) . | . . . . . . Largest Inventory Capacity 8 | 8 8 5 5 5 5 Average Capacity 5 | 7 7 5 5 5 5 Most Carried 8 | 8 8 5 5 5 5 Average Carried 5 | 2 6 4 4 4 4 Final Capacity 8 | 8 5 5 5 5 5 Final Carried 8 | 8 5 5 5 5 1 Class Distribution -------------------- 80% | Mutant 19% | Derelict-Mutant Dominant Class ---------------- Mutant | -10/Materials Mutant | -9/Materials Mutant | -9/Mines Mutant | -7/Zion Derelict-Mutant | -6/Proximity Caves Resources | -11 -10 -9 -9 -7 -6 ----------- Run | Jun Mat Mat Min Zio Pro Matter Collected 584 | 299 77 82 46 70 10 Remotely . | . . . . . . Salvage Created 839 | 188 90 235 176 . 150 Parts 57 | 11 13 17 15 . 1 Haulers Intercepted 2 | . . 2 . . . Recyclers Shooed 2 | 1 . . 1 . . Parts Field Recycled . | . . . . . . Retrieved Matter . | . . . . . . Parts Self-Destructed 3 | . . . . . 3 Prevented 5 | . . . . . 5 Kills | -11 -10 -9 -9 -7 -6 ------- Run | Jun Mat Mat Min Zio Pro Combat Hostiles Destroyed 19 | . 4 4 8 . 3 Guns 12 | . 4 4 3 . 1 Cannons 3 | . . . 3 . . AOE 4 | . . . 2 . 2 Classes Destroyed 9 | 2 3 3 1 . . Worker 2 | . . 2 . . . Tunneler 4 | 4 . . . . . Hauler 2 | . . 2 . . . Recycler 1 | 1 . . . . . Watcher 2 | . 1 1 . . . Swarmer 7 | . 3 . 4 . . Grunt 7 | . 1 2 3 . 1 Duelist 3 | . . . 1 . 2 Sentry 2 | . . 2 . . . Best Kill Streak 5 | 5 3 3 4 . 2 Combat Bots Only 4 | . 3 2 4 . 2 Max Kills in Single Turn 2 | 1 1 1 1 . 2 Gunslinging . | . . . . . . Exploded 2 | . . . 1 . 2 Melee . | . . . . . . Uniques/NPCs Destroyed . | . . . . . . Combat | -11 -10 -9 -9 -7 -6 -------- Run | Jun Mat Mat Min Zio Pro Damage Taken 2016 | . 122 193 457 . 1244 Core 476 | . 58 29 103 . 286 Absorbed by Shields . | . . . . . . Regen/Repaired (Parts) 343 | . . . . 343 . Core Remaining (%) 88 | 100 76 . . . . Volleys Fired 83 | 14 13 20 24 . 12 Largest 2 | 2 2 2 2 . 2 Hottest 162 | 60 130 133 133 . 162 Shots Fired 140 | 19 26 40 34 . 21 Gun 114 | 19 26 39 12 . 18 Cannon 23 | . . 1 22 . . Launcher 3 | . . . . . 3 Special . | . . . . . . Kinetic 21 | 13 8 . . . . Thermal 93 | . 10 40 25 . 18 Explosive 3 | . . . . . 3 Electromagnetic 23 | 6 8 . 9 . . Robot Hit Streak 18 | 7 6 18 6 . 3 Robot Miss Streak 7 | 2 5 7 5 . 3 Penetration Max . | . . . . . . Secondary Targets . | . . . . . . Shots Hit Robots 101 | 12 20 37 21 . 11 Core Hits 92 | 6 12 35 25 . 14 Critical Kills . | . . . . . . Critical Parts Destroyed . | . . . . . . Critical Strikes 2 | . . . . . 2 Burn 2 | . . . . . 2 Melee Attacks 3 | . . . . . 3 Impact . | . . . . . . Slashing . | . . . . . . Piercing 3 | . . . . . 3 Sneak Attacks . | . . . . . . Combat Hostiles . | . . . . . . Follow-up Attacks . | . . . . . . Damage Inflicted 1902 | 163 223 447 466 . 603 Guns 1163 | 163 223 427 141 . 209 Cannons 239 | . . 20 219 . . Explosions 449 | . . . 89 . 360 Melee 34 | . . . . . 34 Ramming 17 | . . . 17 . . Kinetic 168 | 108 60 . . . . Thermal 1094 | . 83 447 355 . 209 Explosive 360 | . . . . . 360 Electromagnetic 229 | 55 80 . 94 . . Impact . | . . . . . . Slashing . | . . . . . . Piercing 34 | . . . . . 34 Highest Corruption 3 | . . 2 2 2 3 Average Corruption 2 | . . 2 2 2 2 Corruption Purged . | . . . . . . Corruption Blocked . | . . . . . . Effects 10 | . . . 6 2 2 Message Errors 2 | . . . 1 1 . Matter Fused 2 | . . . 1 . 1 Heat Flow Errors 1 | . . . 1 . . Energy Discharges 2 | . . . 1 . 1 Data Loss (major) 2 | . . . 1 1 . Weapon Failures 1 | . . . 1 . . Overload Shots . | . . . . . . Overflow Damage 3 | . . . . . 3 Projectiles . | . . . . . . Explosions 3 | . . . . . 3 Melee . | . . . . . . Knockbacks 1 | . . . 1 . . Impact 1 | . . . 1 . . Kinetic . | . . . . . . Secondary . | . . . . . . Self-Inflicted Damage 78 | . . . . . 78 Shots 3 | . . . . . 3 Rammed . | . . . . . . Targets Rammed 7 | . 1 . 6 . . Kicked 7 | . 1 . 6 . . Crushed . | . . . . . . Highest Temperature 311 | . 126 147 222 . 311 Average Temperature 69 | . 46 40 46 . 136 Received Heat Transfer 324 | . 18 69 90 . 147 Siege Activations . | . . . . . . Robots Corrupted . | . . . . . . Combat Hostiles . | . . . . . . Parts Fried 1 | . . . 1 . . Impact Corruptions . | . . . . . . Robots Melted . | . . . . . . Combat Hostiles . | . . . . . . Parts Melted 1 | . . 1 . . . Heat Transferred 1670 | . 100 542 547 . 481 Parts Sabotaged . | . . . . . . Parts Stolen . | . . . . . . Parts Stripped . | . . . . . . Power Chain Reactions 1 | . . . 1 . . Missiles Intercepted . | . . . . . . Alert | -11 -10 -9 -9 -7 -6 ------- Run | Jun Mat Mat Min Zio Pro Peak Influence 220 | 25 83 102 220 . . Initial 34 | . 16 34 3 . . Average 46 | 11 16 49 125 . . Maximum Alert Level 1 | . . . 1 . . Low Security (%) 93 | 100 100 100 64 . . Level 1 6 | . . . 35 . . Level 2 . | . . . . . . Level 3 . | . . . . . . Level 4 . | . . . . . . Level 5 . | . . . . . . High Security . | . . . . . . Max Security . | . . . . . . Squads Dispatched 3 | . 2 . . . 1 Investigation 1 | . 1 . . . . Extermination . | . . . . . . Reinforcement 1 | . 1 . . . . Assault 1 | . . . . . 1 Garrison . | . . . . . . Intercept . | . . . . . . Searches Triggered . | . . . . . . Construction Impeded . | . . . . . . Haulers Reinforced . | . . . . . . Active Scanning Responses . | . . . . . . Cargo Convoy Interrupts . | . . . . . . Stealth | -11 -10 -9 -9 -7 -6 --------- Run | Jun Mat Mat Min Zio Pro Distress Signals . | . . . . . . Communications Jammed . | . . . . . . Distress Signals . | . . . . . . Times Spotted 35 | . 8 5 8 . 14 Peak Tracking Total 8 | . 3 2 4 . 8 Tactical Retreats . | . . . . . . Traps | -11 -10 -9 -9 -7 -6 ------- Run | Jun Mat Mat Min Zio Pro Traps Triggered 3 | . 2 1 . . . Indirectly . | . . . . . . Trap Hack Attempts . | . . . . . . Triggered . | . . . . . . Disarmed . | . . . . . . Reprogrammed . | . . . . . . Reused . | . . . . . . Traps Extracted . | . . . . . . Installed . | . . . . . . Triggered . | . . . . . . Machines | -11 -10 -9 -9 -7 -6 ---------- Run | Jun Mat Mat Min Zio Pro Machines Disabled 3 | . . . 2 . 1 Max in Single Turn 1 | . . . 1 . . Machines Repaired . | . . . . . . Machines Sabotaged . | . . . . . . Overloaded Fab Kills . | . . . . . . Hacking | -11 -10 -9 -9 -7 -6 --------- Run | Jun Mat Mat Min Zio Pro Machines Accessed 10 | . 5 4 . 1 . Terminals 8 | . 5 3 . . . Fabricators . | . . . . . . Repair Stations . | . . . . . . Recycling Units . | . . . . . . Scanalyzers 1 | . . 1 . . . Garrison Access . | . . . . . . Total Hacks 29 | . 12 13 . 4 . Successful 17 | . 5 8 . 4 . Failed 12 | . 7 5 . . . Catastrophic 5 | . 3 2 . . . Database Lockouts . | . . . . . . Manual 9 | . 3 5 . 1 . Terminals 20 | . 12 8 . . . Fabricators . | . . . . . . Repair Stations . | . . . . . . Recycling Units . | . . . . . . Scanalyzers 5 | . . 5 . . . Garrison Access . | . . . . . . Terminal Hacks 12 | . 5 3 . 4 . Record 1 | . . 1 . . . Part Schematic 5 | . . 1 . 4 . Robot Analysis 1 | . 1 . . . . Branch Access Points 1 | . . 1 . . . Scanalyzer Index 1 | . 1 . . . . Alert Level 1 | . 1 . . . . Hauler Manifests 1 | . 1 . . . . Zone Layout 1 | . 1 . . . . Fabricator Hacks . | . . . . . . Repair Station Hacks . | . . . . . . Recycling Unit Hacks . | . . . . . . Scanalyzer 5 | . . 5 . . . Insert Component 3 | . . 3 . . . Analyze 2 | . . 2 . . . Garrison Access Hacks . | . . . . . . Unauthorized Hacks . | . . . . . . Terminals . | . . . . . . Fabricators . | . . . . . . Repair Stations . | . . . . . . Recycling Units . | . . . . . . Scanalyzers . | . . . . . . Garrison Access . | . . . . . . Data Cores Recovered . | . . . . . . Used . | . . . . . . Hacking Detections 6 | . 4 2 . . . Full Trace Events 1 | . 1 . . . . Feedback Events . | . . . . . . Feedback Blocked . | . . . . . . Robot Schematics Acquired 1 | . . . . 1 . Robots Built . | . . . . . . Authchips . | . . . . . . Time . | . . . . . . Total Robot Build Rating . | . . . . . . Part Schematics Acquired 9 | . . 2 . 7 . Parts Built . | . . . . . . Authchips . | . . . . . . Time . | . . . . . . Total Part Build Rating . | . . . . . . Parts Repaired . | . . . . . . Time . | . . . . . . Parts Recycled . | . . . . . . Recycled Matter . | . . . . . . Retrieved Matter . | . . . . . . Retrieved Components . | . . . . . . Parts Scanalyzed 2 | . . 2 . . . Part Schematics Acquired 1 | . . 1 . . . Parts Damaged . | . . . . . . Bothacking | -11 -10 -9 -9 -7 -6 ------------ Run | Jun Mat Mat Min Zio Pro Used RIF Installer . | . . . . . . Robots Hacked . | . . . . . . Non-combat . | . . . . . . Combat . | . . . . . . Robot Hacks Applied . | . . . . . . Relay Couplers Released . | . . . . . . Fabnet Peak Effective % . | . . . . . . Robots Rewired . | . . . . . . Allies Hacked . | . . . . . . Hacks Repelled . | . . . . . . Allies | -11 -10 -9 -9 -7 -6 -------- Run | Jun Mat Mat Min Zio Pro Total Allies 4 | . . . . 4 . Largest Group 4 | . . . . 4 4 Highest-Rated Group 156 | . . . . 156 156 Highest-Rated Ally 39 | . . . . 39 39 Total Orders . | . . . . . . Ally Attacks 26 | . . . . . 26 Total Damage 939 | . . . . . 939 Kills 3 | . . . . . 3 Allies Corrupted . | . . . . . . Allies Melted 2 | . . . . . 2 Intel | -11 -10 -9 -9 -7 -6 ------- Run | Jun Mat Mat Min Zio Pro Robot Analysis Total 1 | . 1 . . . . Derelict Logs Recovered 3 | . . . 2 1 . Drone Launches . | . . . . . . Drone Recoveries . | . . . . . . Exploration | -11 -10 -9 -9 -7 -6 ------------- Run | Jun Mat Mat Min Zio Pro Turns Passed 4614 | 127 1065 825 431 1756 410 Spaces Moved 2574 | 70 346 407 265 1224 262 Core 15 | 14 . . . . 1 Treads . | . . . . . . Legs 2559 | 56 346 407 265 1224 261 Wheels . | . . . . . . Hover . | . . . . . . Flight . | . . . . . . Fastest Speed 50 | 50 120 120 120 120 50 Average Speed 119 | 106 120 120 120 120 119 Slowest Speed 120 | 120 120 120 120 120 120 Overloaded Moves . | . . . . . . Propulsion Burnouts . | . . . . . . Robots Hopped . | . . . . . . Cave-ins Triggered . | . . . . . . Exploration Rate (%) 46 | 5 41 37 64 89 42 Regions Visited 5 Branch Regions 3 Pre-discovered Areas . | . . . . . . Known Exits Taken 1 | . . 1 . . . Unknown Exits Taken 4 | 1 1 . 1 1 . Scrap Searched 5 | . . . 1 3 1 Spaces Dug . | . . . . . . Terrain Destroyed 33 | . . . 17 . 16 Melee . | . . . . . . Projectile . | . . . . . . AOE 33 | . . . 17 . 16 Terrain Rammed . | . . . . . . Walls Destroyed . | . . . . . . Machines Disabled . | . . . . . . Actions | -11 -10 -9 -9 -7 -6 --------- Run | Jun Mat Mat Min Zio Pro Total 3967 | 104 975 703 342 1512 331 Wait 1193 | 1 579 264 31 271 47 Move 2569 | 69 345 406 264 1223 262 Hop . | . . . . . . Pick Up 41 | 14 10 5 7 4 1 Fast Attach 5 | . 2 . 1 2 . Attach 21 | 6 2 4 3 1 5 Detach 4 | . 2 . . 2 . Swap 12 | . 5 2 2 3 . Drop 29 | . 16 2 4 6 1 Fire 83 | 14 13 20 24 . 12 Melee 3 | . . . . . 3 Ram . | . . . . . . Kick 7 | . 1 . 6 . . Crush . | . . . . . . Escape Stasis . | . . . . . . Rewire . | . . . . . . Trap . | . . . . . . Miscellaneous . | . . . . . . Route ------- -11/Junkyard -10/Materials -9/Materials -9/Mines -7/Zion -6/Proximity Caves History --------- Turn | Location | Event 7 | -11/Junkyard | Discovered new exit (range 15) 128 | -11/Junkyard | Entered Materials 315 | -10/Materials | Build established: Mutant 1179 | -10/Materials | Discovered new exit (range 7) 1193 | -10/Materials | Entered another Materials area 1193 | -9/Materials | Evolved 2 slots: Propulsion x2 2004 | -9/Materials | Discovered new exit (range 11) 2006 | -9/Materials | Identified exit to Mines 2018 | -9/Materials | Entered Mines 2138 | -9/Mines | Learned Materials terminal intel 2373 | -9/Mines | Learned Materials terminal intel 2437 | -9/Mines | A Derelict revealed a hidden shortcut to a safe place 2449 | -9/Mines | Entered Zion 2496 | -7/Zion | Given A8's code to call for help 2504 | -7/Zion | System corruption cleaned by Quarantine Array 2822 | -7/Zion | Imprinted 2824 | -7/Zion | Declared Zion's savior 3277 | -7/Zion | Visited the Megawrench Repair Shop 3277 | -7/Zion | Megawrench repaired 9 parts 3467 | -7/Zion | Learned Factory security intel 3545 | -7/Zion | Found CR-A16's Pointy Stick 3584 | -7/Zion | Build established: Derelict-Mutant 4025 | -7/Zion | Found Prototype Device 4027 | -7/Zion | Identified Mobile Refinery Mk. CCLXVII 4176 | -7/Zion | Discovered new exit (range 9) 4205 | -7/Zion | Entered Proximity Caves 4205 | -6/Proximity Caves | Accompanied by 4 allies 4238 | -6/Proximity Caves | Build established: Mutant 4254 | -6/Proximity Caves | Spotted B-75 Beast 4279 | -6/Proximity Caves | Allies destroyed B-75 Beast 4527 | -6/Proximity Caves | Attracted the attention of an 0b10 outpost 4552 | -6/Proximity Caves | Core integrity fell below 50% 4610 | -6/Proximity Caves | Core integrity fell below 20% 4614 | -6/Proximity Caves | Released all parts (1) 4615 | -6/Proximity Caves | Destroyed by Y-64 Sentinel with KE Penetrator Last Messages --------------- 04602_ Cooling System destroyed. 04604_ Imp. Aluminum Leg destroyed. 04606_ CR-A16's Pointy Stick destroyed. 04606_ System corrupted by crushing effect (+1). 04606_ Imp. Aluminum Leg severed. 04607_ C-30 ARC bursts open, deploying its payload. 04607_ G-67 Veteran unfolds itself. 04607_ G-50 Soldier unfolds itself. 04607_ B-48 Gladiator unfolds itself. 04607_ G-50 Soldier unfolds itself. 04607_ M-28 Smith unfolds itself. 04609_ Knocked back. 04609_ L-41 Fighter destroyed. 04609_ G-50 Soldier destroyed. 04610_ Penetrated by Slug. 04612_ Grenade Launcher destroyed. 04612_ Destroyed Grenade Launcher. 04614_ Imp. Aluminum Leg destroyed. 04614_ Released Mobile Refinery Mk. CCLXVII. 04615_ Penetrated by Slug. Map ----- +----------------------------------------------------+ | ?????????????????????????????????????????????????? | | ?????????????????????????????????????????????????? | | ?????????????????????????????????????????????????? | | ?????????????????????????????????????????????????? | | ?????????????????????????????????????????????????? | | ?????????????????????????????????????????????????? | | ?????????????????????????????????????????????????? | | ?????????????????????????????????????????????????? | | ?????????????????????????????????????????????????? | | ?????????????????????????????????????????????????? | | ?????????????????????????????????????????????????? | | ?????????????????????????????????????????????????? | | ?????????????????????????????????????????????????? | | ?????????????????????????????????????????????????? | | ?????????????????????????????????????????????????? | | ??????????????????????####???????????????????????? | | ?????????????????????## ##??????????????????????? | | ????????????????????## #??????????????????????? | | ????????????????????# #??????????????????????? | | ????????????????????# #??????????????????????? | | ????????????????????# #??????????????????????? | | ????????????????????# #??????????????????????? | | ????????????????????# #??????????????????????? | | ?????????????????##?# #??????????????????????? | | ?????????????????# ## ! #??????????????????????? | | ?????????????????# b@#??????????????????????? | | ??????????? ???## Y #??????????????????????? | | ????????? ???## % #??????????????????????? | | ???????? ????# b ??????????????????????? | | ???????# ????# ggg ??????????????????????? | | ???????# ????# # m ###?????????????????????? | | ???????# ???##### ##?????????????????????? | | ????????# #??## ### #?????????????????????? | | ?????????# ##?# ##% #?????????????????????? | | #?????????# ### ##?????????????????????? | | #?????????# ##??????????????????????? | | #???????### ##???????????????????????? | | #???????# ####????????????????????????? | | #???###?# ##???????????????????????????? | | ##### ### #????????????????????????????? | | ### #????????????????????????????? | | ### ## #????????????????????????????? | | ### # ## ##???????????????????????????? | | ####?# ## ## "#???????????????????????????? | | ##????# ### #???????????????????????????? | | ##?????# #?# #???????????????????????????? | | ##??????# ## ## #??????????????????????????? | | #???????# =### #### #??????????????????????????? | | ????????# #?###??#####??????????????????????????? | | #???????# #?????????????????????????????????????? | +----------------------------------------------------+ Best States ------------- Heat Dissipation 50 Energy Generation 10 Energy Capacity 250 Matter Stores 300 Matter Capacity 300 Sight Range 16 Robot Scan Range 14 Terrain Scan Density 10 Evasion (%) 55 Item Schematics ----------------- Datajack | -9/Materials | Hacked Spread Laser | -9/Materials | Scanalyzed Battle Cannon | -7/Zion | Free Riot Gun | -7/Zion | Free Enh. Flamer | -7/Zion | Free Flamer | -7/Zion | Free Imp. Particle Charger | -7/Zion | Archive Imp. Salvage Targeting Computer | -7/Zion | Archive Microactuators | -7/Zion | Archive Robot Schematics ------------------ K-01 Serf | -7/Zion | Archive Fabricated ------------ Nothing Alien Tech Used ----------------- None Achievements -------------- Robot Respite The One Tourist Challenges ------------ None Game ------ Seed CoordinationCoolingDevice Manual? 0 Play Time 00:56:29 Cumulative 6.0 hours Start 2024.02.11 @ 16:34:20 End 2024.02.11 @ 21:56:52 Sessions 2 Manual Loads 0 Difficulty Rogue Special Mode None Game No. 4 Rogue 4 Adventurer 0 Explorer 0 Win Type - Total 0 Types 0/0/0/0/0/0/0/0/0 Lore% 7 Gallery% 7 Achievement% 9 Wizard Run 0 Options --------- ASCII 0 Keyboard 0 Movement Numpad Keybinds 0 Fullscreen 1 Font 18/SmallcapsGlow Map View 76x50 Tactical HUD 1 Map Filters NONE Filters NONE Steam 1 RUN: 436d7ebf-aca1-45c6-bdaa-502c62519761